fUSD/lending_fUSD_20251211
["ID","MTS","AMOUNT","RATE_DAILY","PERIOD"]
[398194476,1765434642651,-972.9214,0.000389,120]
[398194477,1765434642661,-600.0,0.00038904,30]
[398194478,1765434642670,-150.0,0.00038937,7]
[398194479,1765434642679,-150.0,0.00038937,7]
[398194480,1765434642688,-150.0,0.00038937,7]
[398194481,1765434642697,-458.06625341,0.00039094,2]
[398194482,1765434642706,-150.0,0.00039347,7]
[398194483,1765434642715,-150.0,0.00039347,7]
[398194484,1765434642724,-150.0,0.00039347,7]
[398194485,1765434642734,-643.73,0.00039452,30]
[398194487,1765434642743,-150.0,0.0003962,7]
[398194489,1765434642752,-500.0,0.00039726,120]
[398194491,1765434642762,-500.0,0.00039726,120]
[398194492,1765434642771,-500.0,0.00039726,120]
[398194493,1765434642781,-500.0,0.00039726,120]
[398194495,1765434642790,-500.0,0.00039726,120]
[398194496,1765434642800,-500.0,0.00039726,120]
[398194497,1765434642809,-396.78594193,0.00039726,120]
[398194498,1765434642819,-458.06625341,0.00039755,2]
[398194499,1765434642828,-3915.36778843,0.00039765,2]
[398194500,1765434642838,-8946.23,0.0003982,2]
[398194501,1765434642847,-1108.93,0.000399,30]
[398194502,1765434642856,-150.0,0.00039962,7]
[398194503,1765434642865,-150.0,0.0004,60]
[398194504,1765434642875,-490.92,0.0004,120]
[398194505,1765434642884,-1600.85669793,0.0004,120]
[398194506,1765434642893,-150.0,0.00040167,7]
[398194507,1765434642903,-150.0,0.00040167,7]
[398194508,1765434642912,-150.0,0.00040167,7]
[398194509,1765434642922,-1298.34367318,0.0004025,2]
[398194510,1765434642931,-150.0,0.00040303,7]
[398194511,1765434642941,-1298.34367318,0.00040375,2]
[398194512,1765434642951,-458.06625341,0.00040416,2]
[398194513,1765434642960,-500.0,0.00040547,120]
[398194514,1765434642971,-580.36290076,0.00040547,120]
[398194515,1765434642980,-1298.34367319,0.00040579,2]
[398194516,1765434642991,-200.0,0.00040666,20]
[398194517,1765434643001,-2363.01641,0.0004068,5]
[398194518,1765434643010,-852.6,0.00040764,60]
[398194519,1765434643020,-253.0,0.00040781,2]
[398194520,1765434643030,-219.76448304,0.00040821,2]
[398194521,1765434643039,-500.0,0.00040821,120]
[398194522,1765434643049,-853.1073309,0.00040864,2]
[398194523,1765434643059,-128547.2408883,0.00040864,2]
[398194524,1765434643073,-1397.2044175,0.00040864,2]
[398194525,1765434643084,-190.3539753,0.00040864,2]
[398194526,1765434643095,-4919.2796094,0.00040864,2]
[398194527,1765434643105,-151.0,0.00040864,120]
[398194528,1765434643115,-151.0,0.00040864,120]
[398194529,1765434643124,-151.0,0.00040864,120]
[398194530,1765434643133,-151.0,0.00040864,120]
[398194531,1765434643144,-151.0,0.00040864,120]
[398194532,1765434643154,-151.0,0.00040864,120]
[398194533,1765434643165,-151.0,0.00040864,120]
[398194534,1765434643175,-151.0,0.00040864,14]
[398194535,1765434643184,-151.0,0.00040864,120]
[398194536,1765434643193,-151.0,0.00040864,120]
[398194537,1765434643201,-151.0,0.00040864,120]
[398194538,1765434643210,-339.899709,0.00040864,120]
[398194539,1765434643217,-151.0,0.00040864,120]
[398194540,1765434643226,-339.899709,0.00040864,120]
[398194541,1765434643235,-151.0,0.00040864,120]
[398194542,1765434643244,-339.899709,0.00040864,120]
[398194543,1765434643253,-339.899709,0.00040864,120]
[398194544,1765434643264,-151.0,0.00040864,120]
[398194545,1765434643274,-151.0,0.00040864,120]
[398194546,1765434643283,-151.0,0.00040864,120]
[398194547,1765434643292,-151.0,0.00040864,120]
[398194548,1765434643302,-151.0,0.00040864,120]
[398194549,1765434643311,-151.0,0.00040864,120]
[398194550,1765434643320,-151.0,0.00040864,120]
[398194551,1765434643330,-151.0,0.00040864,120]
[398194552,1765434643339,-166.762421,0.00040864,120]
[398194553,1765434643348,-166.762421,0.00040864,120]
[398194554,1765434643358,-353.953634,0.00040864,120]
[398194555,1765434643367,-166.762421,0.00040864,120]
[398194556,1765434643377,-151.0,0.00040864,120]
[398194557,1765434643386,-166.762421,0.00040864,120]
[398194558,1765434643396,-353.953634,0.00040864,120]
[398194559,1765434643405,-353.953634,0.00040864,120]
[398194560,1765434643415,-151.0,0.00040864,120]
[398194561,1765434643425,-353.953634,0.00040864,120]
[398194562,1765434643434,-151.0,0.00040864,120]
[398194563,1765434643443,-151.0,0.00040864,120]
[398194564,1765434643453,-192.631444,0.00040864,120]
[398194565,1765434643463,-371.354658,0.00040864,120]
[398194566,1765434643473,-371.354658,0.00040864,120]
[398194567,1765434643483,-371.354658,0.00040864,120]
[398194568,1765434643493,-371.354658,0.00040864,120]
[398194569,1765434643502,-151.0,0.00040864,120]
[398194570,1765434643512,-151.0,0.00040864,120]
[398194571,1765434643522,-151.0,0.00040864,120]
[398194572,1765434643531,-151.0,0.00040864,120]
[398194573,1765434643541,-151.0,0.00040864,120]
[398194574,1765434643550,-151.0,0.00040864,120]
[398194575,1765434643559,-151.0,0.00040864,120]
[398194576,1765434643569,-151.0,0.00040864,120]
[398194577,1765434643578,-2275.32,0.00040899,60]
[398194578,1765434643588,-2275.32,0.00040899,60]
[398194579,1765434643597,-255555.0,0.000409,120]
[398194580,1765434643606,-13582.78056763,0.000409,15]
[398194581,1765434643615,-151.0,0.000409,120]
[398194582,1765434643624,-151.0,0.000409,120]
[398194583,1765434643633,-151.0,0.000409,120]
[398194584,1765434643821,-151.0,0.000409,120]
[398194585,1765434643831,-431.304549,0.000409,120]
[398194586,1765434643840,-151.0,0.000409,60]
[398194587,1765434643849,-151.0,0.000409,120]
[398194588,1765434643859,-431.304549,0.000409,120]
[398194589,1765434643867,-431.304549,0.000409,120]
[398194590,1765434643876,-151.0,0.000409,120]
[398194591,1765434643886,-431.304549,0.000409,120]
[398194592,1765434643894,-151.0,0.000409,120]
[398194593,1765434643902,-151.0,0.000409,120]
[398194594,1765434643911,-151.0,0.000409,120]
[398194595,1765434643920,-151.0,0.000409,120]
[398194596,1765434643930,-151.0,0.000409,120]
[398194597,1765434643939,-151.0,0.000409,120]
[398194598,1765434643948,-151.0,0.000409,120]
[398194599,1765434643957,-226.986693,0.000409,120]
[398194600,1765434643966,-151.0,0.000409,120]
[398194601,1765434643975,-151.0,0.000409,120]
[398194602,1765434643984,-226.986693,0.000409,120]
[398194603,1765434643994,-151.0,0.000409,120]
[398194604,1765434644003,-226.986693,0.000409,120]
[398194605,1765434644012,-226.986693,0.000409,120]
[398194606,1765434644022,-228.199924,0.000409,120]
[398194607,1765434644031,-228.199924,0.000409,120]
[398194608,1765434644040,-228.199924,0.000409,120]
[398194609,1765434644049,-228.199924,0.000409,120]
[398194610,1765434644059,-151.0,0.000409,120]
[398194611,1765434644072,-151.0,0.000409,120]
[398194612,1765434644082,-169.99279709,0.00040986,7]
[398194613,1765434644091,-154.82397653,0.00040986,7]
[398194614,1765434644102,-267.25840344,0.00040986,7]
[398194615,1765434644111,-150.0,0.00040986,7]
[398194616,1765434644121,-151.1752583,0.00040986,7]
[398194617,1765434644130,-150.0,0.00040986,7]
[398194618,1765434644140,-150.0,0.00040986,7]
[398194619,1765434644149,-150.0,0.00040986,7]
[398194620,1765434644158,-1153.69299301,0.0004099,7]
[398194621,1765434644167,-157.040801,0.00040995,120]
[398194622,1765434644176,-454.662602,0.00040995,120]
[398194623,1765434644185,-454.662602,0.00040995,120]
[398194624,1765434644194,-454.662602,0.00040995,120]
[398194625,1765434644203,-454.662602,0.00040995,120]
[398194626,1765434644212,-289.458235,0.00040995,15]
[398194627,1765434644221,-289.458235,0.00040995,15]
[398194628,1765434644231,-289.458235,0.00040995,15]
[398194629,1765434644240,-289.458235,0.00040995,15]
[398194630,1765434644249,-151.0,0.00040995,120]
[398194631,1765434644258,-166.981152,0.00040995,120]
[398194632,1765434644267,-151.0,0.00040995,120]
[398194633,1765434644276,-151.0,0.00040995,120]
[398194634,1765434644285,-151.0,0.00040995,120]
[398194635,1765434644295,-199.14812,0.00040995,120]
[398194636,1765434644304,-151.0,0.00040995,120]
[398194637,1765434644313,-160.704717,0.00040995,120]
[398194638,1765434644323,-151.0,0.00040995,120]
[398194639,1765434644332,-151.0,0.00040995,120]
[398194640,1765434644342,-151.0,0.00040995,120]
[398194641,1765434644351,-151.0,0.00040995,120]
[398194642,1765434644360,-151.0,0.00040995,120]
[398194643,1765434644370,-151.0,0.00040995,120]
[398194644,1765434644379,-151.0,0.00040995,120]
[398194645,1765434644389,-151.0,0.00040995,120]
[398194646,1765434644398,-151.0,0.00040995,120]
[398194647,1765434644407,-151.0,0.00040995,120]
[398194648,1765434644417,-151.0,0.00040995,120]
[398194649,1765434644426,-255.307319,0.00040995,120]
[398194650,1765434644435,-151.0,0.00040995,120]
[398194651,1765434644445,-151.0,0.00040995,120]
[398194652,1765434644454,-151.0,0.00040995,120]
[398194653,1765434644463,-1952.74112458,0.00040995,2]
[398194654,1765434644472,-10000.0,0.00040995,2]
[398194655,1765434644481,-150.0,0.00041,60]
[398194656,1765434644491,-1121145.74945834,0.00041,30]
[398194657,1765434644511,-10250.8,0.00041,30]
[398194658,1765434645017,-1.7e-07,0.00041,30]
[398194659,1765434645075,-448.45149999,0.00026291,2]
[398194660,1765434645945,-114.54850001,0.00026291,2]
[398194661,1765434645955,-237.06454558,0.00029291,2]
[398194662,1765434646005,-325.93545442,0.00029291,2]
[398194663,1765434646015,-30.92224015,0.000329,2]
[398194667,1765434668601,-413.38875822,0.00016999,2]
[398194668,1765434671599,-86.61124178,0.00016999,2]
[398194669,1765434671623,-413.38875822,0.00016999,2]
[398194670,1765434698079,-183.64881936,0.00016999,2]
[398194671,1765434698103,-9.50661799,0.00016999,2]
[398194672,1765434700907,-189.63316251,0.00016999,2]
[398194673,1765434702575,-212.61860068,0.00016999,2]
[398194674,1765434705244,-99.64736854,0.00016999,2]
[398194675,1765434705265,-209.76780668,0.00016999,2]
[398194676,1765434728078,-18.3847944,0.00016999,2]
[398194677,1765434728106,-151.07620998,0.00016999,2]
[398194678,1765434730112,-211.85278763,0.00016999,2]
[398194679,1765434733177,-2.91636867,0.00016999,2]
[398194680,1765434733200,-166.959546,0.00016999,2]
[398194681,1765434735972,-193.46264545,0.00016999,2]
[398194682,1765434738764,-139.57780855,0.00016999,2]
[398194683,1765434738786,-134.67597148,0.00016999,2]
[398194684,1765434740444,-272.05498767,0.00016999,2]
[398194685,1765434742755,-93.26904085,0.00016999,2]
[398194686,1765434742786,-65.36641976,0.00016999,2]
[398194687,1765434745949,-165.94299404,0.00016999,2]
[398194688,1765434748962,-268.6905862,0.00016999,2]
[398194689,1765434748984,-20.79122713,0.00016999,2]
[398194690,1765434750973,-271.48271689,0.00016999,2]
[398194691,1765434753030,-177.58309466,0.00016999,2]
[398194692,1765434756961,-325.51309995,0.000169,2]
[398194693,1765434760188,-240.95116822,0.000169,2]
[398194694,1765434764682,-383.97099058,0.000169,2]
[398194695,1765434767488,-49.56474125,0.000169,2]
[398194696,1765434767513,-127.01389526,0.000169,2]
[398194697,1765434769957,-260.07639884,0.000169,2]
[398194698,1765434773175,-371.97342857,0.000169,2]
[398194699,1765434775256,-222.78121494,0.000169,2]
[398194700,1765434777673,-489.75852748,0.000169,2]
[398194701,1765434783292,-248.10473042,0.00016899,2]
[398194702,1765434785071,-951.89526958,0.00016899,2]
[398194703,1765434785102,-300.0,0.00016899,2]
[398194704,1765434785131,-550.0,0.00016899,2]
[398194705,1765434785629,-6396.21946084,0.000169,2]
[398194706,1765434785802,-10000.01,0.000169,2]
[398194707,1765434786239,-330.26526236,0.000169,2]
[398194708,1765434788399,-10000.01,0.000169,2]
[398194709,1765434790380,-367.95017259,0.000169,2]
[398194710,1765434792863,-247.53843764,0.000169,2]
[398194711,1765434796844,-382.07815123,0.000169,2]
[398194712,1765434860523,-211.01068116,0.000168,2]
[398194713,1765434860557,-300.0,0.0001685,2]
[398194714,1765434860589,-300.0,0.00016899,2]
[398194715,1765434860683,-8377.98863768,0.000169,2]
[398194716,1765434860741,-10000.01,0.000169,2]
[398194717,1765434860982,-10000.01,0.000169,2]
[398194718,1765434862977,-172.86831948,0.000169,2]
[398194719,1765434866203,-325.4573565,0.000169,2]
[398194720,1765434868281,-10000.01,0.000169,2]
[398194721,1765434868396,-10000.01,0.000169,2]
[398194722,1765434868524,-10000.01,0.000169,2]
[398194723,1765434870060,-342.00274618,0.000169,2]
[398194724,1765434872928,-217.77121887,0.00016899,2]
[398194725,1765434872966,-12.28793666,0.00016899,2]
[398194726,1765434879050,-190.02607595,0.00016899,2]
[398194727,1765434881647,-159.06808244,0.00016899,2]
[398194728,1765434884702,-121.46209442,0.00016899,2]
[398194729,1765434884725,-379.32662888,0.00016899,2]
[398194730,1765434952913,-180.71246424,0.000168,2]
[398194731,1765434958646,-819.28753576,0.000168,2]
[398194732,1765434958678,-300.0,0.00016898,2]
[398194733,1765434958710,-1200.0,0.00016898,2]
[398194734,1765434958743,-120.67337112,0.00016899,2]
[398194735,1765434958776,-500.0,0.00016899,2]
[398194736,1765434958806,-500.0,0.00016899,2]
[398194737,1765434958837,-645.96325996,0.00016899,2]
[398194738,1765434958866,-500.0,0.00016899,2]
[398194739,1765434958895,-328.16166632,0.00016899,2]
[398194740,1765434959043,-171.83833368,0.00016899,2]
[398194741,1765434959072,-584.36925998,0.00016899,2]
[398194742,1765434959102,-500.0,0.00016899,2]
[398194743,1765434959138,-500.0,0.00016899,2]
[398194744,1765434959168,-212.00145405,0.00016899,2]
[398194745,1765434959486,-500.0,0.00016899,2]
[398194746,1765434959518,-500.0,0.00016899,2]
[398194747,1765434959547,-181.0531436,0.00016899,2]
[398194748,1765434959586,-500.0,0.00016899,2]
[398194749,1765434959622,-500.0,0.00016899,2]
[398194750,1765434959656,-500.0,0.00016899,2]
[398194751,1765434959690,-201.48561738,0.00016899,2]
[398194752,1765434959784,-298.51438262,0.00016899,2]
[398194753,1765434959832,-569.81179184,0.00016899,2]
[398194754,1765434959875,-275.51350717,0.00016899,2]
[398194755,1765434960589,-232.43392783,0.000169,2]
[398194756,1765434960630,-275.51350717,0.000169,2]
[398194757,1765434960667,-7712.33063674,0.000169,2]
[398194758,1765434960705,-10000.01,0.000169,2]
[398194759,1765434960747,-216.31524377,0.000169,2]
[398194760,1765434962021,-550.0,0.00016898,2]
[398194761,1765434962088,-8900.01,0.000169,2]
[398194762,1765434962162,-10000.01,0.000169,2]
[398194763,1765434962318,-10000.01,0.000169,2]
[398194766,1765435045020,-197.23732865,0.000167,2]
[398194767,1765435045080,-194.03931288,0.00016725,2]
[398194768,1765435045140,-195.0,0.0001675,2]
[398194769,1765435045198,-300.0,0.00016799,2]
[398194770,1765435045515,-8227.45671694,0.000168,2]
[398194771,1765435049170,-4594.76922887,0.000168,2]
[398194772,1765435049263,-810.47154226,0.000168,2]
[398194773,1765435082496,250.0,0.000202,30]
[398194774,1765435088489,-267.99211505,0.00016799,2]
[398194775,1765435103033,-402.74111737,0.00016799,2]
[398194776,1765435106305,-500.0,0.00016799,2]
[398194777,1765435117975,-29.26676758,0.00016799,2]
[398194778,1765435117998,-125.21650633,0.00016799,2]
[398194779,1765435119996,-172.21759235,0.00016799,2]
[398194780,1765435121541,-2.56590132,0.00016799,2]
[398194781,1765435121564,-195.0,0.000168,2]
[398194782,1765435121590,-43.22504561,0.000168,2]
[398194783,1765435125343,-200.25940914,0.000168,2]
[398194784,1765435127727,204.34,0.00011241,2]
[398194785,1765435127926,204.34,0.00011832,2]
[398194786,1765435128111,204.34,0.00012424,2]
[398194787,1765435128309,204.34,0.00013015,2]
[398194788,1765435128442,-348.68085103,0.000168,2]
[398194789,1765435128494,204.34,0.00013607,2]
[398194790,1765435128694,204.34,0.00014199,2]
[398194791,1765435128902,204.34,0.0001479,2]
[398194792,1765435132994,-151.31914897,0.00015382,2]
[398194793,1765435135362,-53.02085103,0.00015382,2]
[398194794,1765435135386,-192.48517684,0.00015973,2]
[398194795,1765435150081,-11.85482316,0.00015973,2]
[398194796,1765435150122,-195.0,0.00016269,2]
[398194797,1765435150164,-204.34,0.00016565,2]
[398194798,1765435150223,-300.0,0.00016799,2]
[398194799,1765435150304,-550.0,0.00016799,2]
[398194800,1765435150367,-1907.83469422,0.000168,2]
[398194801,1765435150621,-1170.54335241,0.000168,2]
[398194802,1765435150714,-2491.40761283,0.000168,2]
[398194803,1765435150780,-4832.49431765,0.000168,2]
[398194804,1765435150837,-335.0213647,0.000168,2]
[398194805,1765435150847,-197.23732865,0.000168,2]
[398194806,1765435150860,-3464.71363659,0.000168,2]
[398194807,1765435150905,-5167.51568235,0.000168,2]
[398194808,1765435153787,-10000.01,0.000168,2]
[398194809,1765435153835,-10000.01,0.000168,2]
[398194811,1765435161025,-4812.79198106,0.000168,2]
[398194812,1765435161072,-93.15343788,0.000168,2]
[398194813,1765435161165,-188.11916212,0.000168,2]
[398194814,1765435168804,-1000.0,0.000168,2]
[398194815,1765435238334,-10000.01,0.000168,2]
[398194816,1765435246905,-10000.01,0.000168,2]
[398194819,1765435298529,-191.32246681,0.00016562,2]
[398194820,1765435314140,-263.96825265,0.00016562,2]
[398194821,1765435318942,-1763.62228054,0.00016562,2]
[398194822,1765435318980,-177.514,0.00016562,2]
[398194823,1765435319084,-6117.73743892,0.000168,2]
[398194824,1765435319562,-4007.61976108,0.000168,2]
[398194825,1765435319603,-984.77047784,0.000168,2]
[398194826,1765435319667,-15.22952216,0.000168,2]
[398194827,1765435319723,-4093.9163,0.000168,2]
[398194828,1765435319792,-1812.1774,0.000168,2]
[398194829,1765435324303,-550.0,0.00016799,2]
[398194830,1765435324344,-250.0,0.000168,2]
[398194831,1765435324466,-8400.01,0.000168,2]
[398194832,1765435324512,-10000.01,0.000168,2]
[398194833,1765435476315,-1200.0,0.00016799,2]
[398194834,1765435476355,-300.0,0.00016799,2]
[398194835,1765435476453,-7000.01,0.000168,2]
[398194836,1765435476578,-10000.01,0.000168,2]
[398194837,1765435480722,-10000.01,0.000168,2]
[398194838,1765435501922,-300.0,0.00016799,2]
[398194839,1765435501962,-1200.0,0.00016799,2]
[398194840,1765435502048,-7000.01,0.000168,2]
[398194841,1765435502168,-550.0,0.00016799,2]
[398194842,1765435502228,-8900.01,0.000168,2]
[398194843,1765435502394,-10000.01,0.000168,2]
[398194844,1765435502509,-10000.01,0.000168,2]
[398194845,1765435502665,-4432.0352,0.000168,2]
[398194846,1765435502705,-1135.9396,0.000168,2]
[398194847,1765435503155,-2500.0,0.000168,2]
[398194848,1765435503221,-5000.01,0.000168,2]
[398194849,1765435503295,-1680.3359,0.000168,2]
[398194850,1765435503355,-6639.3382,0.000168,2]
[398194851,1765435503449,-2141.80409705,0.000168,2]
[398194852,1765435503492,-235.6169,0.000168,2]
[398194853,1765435503597,-5245.1680059,0.000168,2]
[398194854,1765435503706,-10000.01,0.000168,2]
[398194855,1765435505267,-10000.01,0.000168,2]
[398194856,1765435509198,-1800.1567059,0.000168,2]
[398194857,1765435509236,-6399.6965882,0.000168,2]
[398194858,1765435509341,-1000.0,0.000168,2]
[398194859,1765435509386,-3338.7952,0.000168,2]
[398194860,1765435509483,-1322.4196,0.000168,2]
[398194861,1765435509546,-10000.01,0.000168,2]
[398194862,1765435509716,-2014.9060965,0.000168,2]
[398194863,1765435509760,-195.0,0.00016812,2]
[398194864,1765435509803,-250.0,0.00016825,2]
[398194865,1765435509844,-300.0,0.00016825,2]
[398194866,1765435509886,-292.0,0.0001685,2]
[398194867,1765435509927,-300.0,0.00016851,2]
[398194868,1765435509966,-170.4633674,0.00016851,2]
[398194869,1765435513973,-200.0,0.0001689,2]
[398194870,1765435513996,-134.84673822,0.0001689,2]
[398194871,1765435531487,-3319.6641,0.000167,2]
[398194872,1765435531524,-3360.6818,0.000167,2]
[398194873,1765435537946,-152.85,0.0001689,2]
[398194874,1765435541346,235.6169,0.000167,2]
[398194875,1765435541620,-212.30326178,0.0001689,2]
[398194876,1765435541644,-141.2912631,0.0001689,2]
[398194877,1765435543355,-358.7087369,0.0001689,2]
[398194878,1765435543378,-224.75548614,0.0001689,2]
[398194879,1765435547093,-275.24451386,0.0001689,2]
[398194880,1765435547116,-212.53358565,0.0001689,2]
[398194881,1765435557869,-163.89385685,0.0001689,2]
[398194882,1765435561589,-123.5725575,0.0001689,2]
[398194883,1765435561614,-71.63914951,0.0001689,2]
[398194884,1765435563569,-170.58861104,0.0001689,2]
[398194885,1765435565561,-33.10930295,0.0001689,2]
[398194886,1765435565587,-416.89069705,0.0001689,2]
[398194887,1765435565814,9764.3931,0.000168,2]
[398194888,1765435565851,10000.01,0.000168,2]
[398194889,1765435565888,4479.6511,0.000168,2]
[398194890,1765435569101,-83.10930295,0.0001689,2]
[398194891,1765435569125,-222.56487116,0.0001689,2]
[398194892,1765435573573,-244.32582589,0.0001689,2]
[398194893,1765435574959,-33.10930295,0.0001689,2]
[398194894,1765435574982,-160.075052,0.0001689,2]
[398194896,1765435581254,-368.09031844,0.0001689,2]
[398194897,1765435584046,1000.0,0.000168,2]
[398194898,1765435585159,175.63,0.00014918,2]
[398194899,1765435586493,-105.7976268,0.0001689,2]
[398194900,1765435586517,-151.0,0.0001689,2]
[398194901,1765435586541,-19.02873366,0.0001689,2]
[398194902,1765435589302,-131.97126634,0.0001689,2]
[398194903,1765435589326,-150.67106818,0.0001689,2]
[398194904,1765435591746,-0.32893182,0.0001689,2]
[398194905,1765435591775,-151.0,0.0001689,2]
[398194906,1765435591799,-32.18795335,0.0001689,2]
[398194907,1765435593249,-118.81204665,0.0001689,2]
[398194908,1765435593273,-151.0,0.0001689,2]
[398194909,1765435593297,-102.61939864,0.0001689,2]
[398194912,1765435598789,-48.38060136,0.0001689,2]
[398194913,1765435598813,-151.0,0.0001689,2]
[398194914,1765435598838,-97.55976447,0.0001689,2]
[398194915,1765435605492,-53.44023553,0.0001689,2]
[398194916,1765435605517,-130.5910122,0.0001689,2]
[398194917,1765435607325,-20.4089878,0.0001689,2]
[398194918,1765435607350,-133.78929235,0.0001689,2]
[398194919,1765435609888,-17.21070765,0.0001689,2]
[398194920,1765435609913,-161.25906309,0.00016899,2]
[398194921,1765435611432,-382.58423289,0.00016899,2]
[398194922,1765435614124,-90.31133774,0.00016899,2]
[398194923,1765435614147,-185.88042837,0.00016899,2]
[398194924,1765435615647,-353.70552255,0.00016899,2]
[398194925,1765435615672,-37.95298679,0.00016899,2]
[398194926,1765435619256,-462.04701321,0.00016899,2]
[398194927,1765435619278,-49.25435163,0.00016899,2]
[398194928,1765435620922,4344.7289,0.000167,2]
[398194929,1765435620957,10000.01,0.000167,2]
[398194930,1765435620991,10000.01,0.000167,2]
[398194931,1765435621028,10000.01,0.000167,2]
[398194932,1765435621062,10000.01,0.000167,2]
[398194933,1765435621097,10000.01,0.000167,2]
[398194934,1765435621135,10000.01,0.000167,2]
[398194935,1765435621171,5239.2545,0.000167,2]
[398194936,1765435621575,-270.9250163,0.00016899,2]
[398194937,1765435625252,-17.28253329,0.00016899,2]
[398194938,1765435625277,-214.52374043,0.00016899,2]
[398194939,1765435629532,-2500.0,0.000168,2]
[398194940,1765435643519,-151.0,0.0001689,2]
[398194941,1765435643542,-151.0,0.0001689,2]
[398194942,1765435643565,-48.07771275,0.0001689,2]
[398194943,1765435646537,-102.92228725,0.0001689,2]
[398194944,1765435646568,-123.49525538,0.0001689,2]
[398194945,1765435649067,-27.50474462,0.0001689,2]
[398194946,1765435649089,-136.33131593,0.0001689,2]
[398194947,1765435651282,-14.66868407,0.0001689,2]
[398194948,1765435651305,-151.0,0.0001689,2]
[398194949,1765435651328,-89.64280659,0.0001689,2]
[398194950,1765435653755,-61.35719341,0.0001689,2]
[398194951,1765435653780,-151.0,0.0001689,2]
[398194952,1765435653805,-105.54985653,0.0001689,2]
[398194953,1765435657942,-45.45014347,0.0001689,2]
[398194954,1765435657964,-151.0,0.0001689,2]
[398194955,1765435657987,-37.29278789,0.0001689,2]
[398194956,1765435659374,-113.70721211,0.0001689,2]
[398194957,1765435659402,-153.72454986,0.00016899,2]
[398194958,1765435662889,-232.47284697,0.00016899,2]
[398194959,1765435666582,-113.80260317,0.00016899,2]
[398194960,1765435666612,-157.09711979,0.00016899,2]
[398194961,1765435670989,-221.9729553,0.00016899,2]
[398194962,1765435673474,-120.92992491,0.00016899,2]
[398194963,1765435673498,-34.59486327,0.00016899,2]
[398194964,1765435678250,-195.38320398,0.00016899,2]
[398194965,1765435679862,-4.65174543,0.00016899,2]
[398194966,1765435679889,-153.82872334,0.00016899,2]
[398194967,1765435681718,-187.95633546,0.00016898,2]
[398194968,1765435686808,-164.11950275,0.00016898,2]
[398194969,1765435688834,-167.41834824,0.00016898,2]
[398194970,1765435693626,-187.87667047,0.00016898,2]
[398194971,1765435695506,-289.62914308,0.00016898,2]
[398194972,1765435695536,-95.6182283,0.00016899,2]
[398194973,1765435698542,-174.42566821,0.00016899,2]
[398194974,1765435699494,5000.01,0.000168,2]
[398194975,1765435699529,1679.8337,0.000168,2]
[398194976,1765435701839,-76.12738015,0.00016899,2]
[398194977,1765435701865,-113.23358267,0.00016899,2]
[398194978,1765435704866,-118.83150809,0.00016899,2]
[398194979,1765435704889,-33.70671167,0.00016899,2]
[398194980,1765435708541,168.27,0.00016712,2]
[398194981,1765435712949,-378.62302761,0.00016899,2]
[398194982,1765435714474,-87.67026072,0.00016899,2]
[398194983,1765435714502,-254.54936554,0.00016899,2]
[398194984,1765435714527,-56.73947116,0.00016899,2]
[398194985,1765435717641,-355.84347778,0.00016899,2]
[398194986,1765435719659,-87.41705106,0.00016899,2]
[398194987,1765435719685,-211.18916259,0.00016899,2]
[398194988,1765435722714,-232.50447191,0.00016899,2]
[398194989,1765435726303,-105.93686072,0.00016899,2]
[398194990,1765435726330,-145.89245899,0.00016899,2]